[Event "Early-Titled-Tuesday-Blitz-February-13-2024"]
[Site "Chess.com"]
[Date "2024.02.13"]
[Round "4"]
[White "vladgoncharov"]
[Black "BogdanDeac"]
[Result "0-1"]
[WhiteElo "2623"]
[BlackElo "2992"]
[TimeControl "180+1"]
[EndTime "8:44:34 PST"]
[Termination "BogdanDeac won by resignation"]

1. d4 {[%clk 0:03:00.9]} 1... Nf6 {[%clk 0:02:59.4]} 2. c4 {[%clk 0:03:00.6]}
2... g6 {[%clk 0:03:00]} 3. Nc3 {[%clk 0:03:00.2]} 3... Bg7 {[%clk 0:03:00.7]}
4. Nf3 {[%clk 0:02:56.1]} 4... O-O {[%clk 0:02:59.5]} 5. Bg5 {[%clk 0:02:56.7]}
5... d6 {[%clk 0:02:57.7]} 6. e3 {[%clk 0:02:56.5]} 6... a6 {[%clk 0:02:55]} 7.
Be2 {[%clk 0:02:54.9]} 7... c5 {[%clk 0:02:54.9]} 8. O-O {[%clk 0:02:54.2]} 8...
Nbd7 {[%clk 0:02:52]} 9. Bh4 {[%clk 0:02:47.2]} 9... Qc7 {[%clk 0:02:42.8]} 10.
Rc1 {[%clk 0:02:42.9]} 10... b6 {[%clk 0:02:42.7]} 11. Qd2 {[%clk 0:02:28.4]}
11... Bb7 {[%clk 0:02:40.7]} 12. d5 {[%clk 0:02:21.8]} 12... b5 {[%clk
0:02:24.7]} 13. b3 {[%clk 0:02:13.8]} 13... Nb6 {[%clk 0:02:12.9]} 14. e4 {[%clk
0:01:57.6]} 14... b4 {[%clk 0:02:11.7]} 15. Bxf6 {[%clk 0:01:57]} 15... exf6
{[%clk 0:01:54.9]} 16. Nb1 {[%clk 0:01:47.7]} 16... Bc8 {[%clk 0:01:28.5]} 17.
h3 {[%clk 0:01:47]} 17... a5 {[%clk 0:01:18.7]} 18. Bd3 {[%clk 0:01:45.5]} 18...
a4 {[%clk 0:01:18.6]} 19. Nh2 {[%clk 0:01:39.5]} 19... axb3 {[%clk 0:00:51.8]}
20. axb3 {[%clk 0:01:39.1]} 20... Bd7 {[%clk 0:00:52.4]} 21. f4 {[%clk
0:01:38.2]} 21... Qd8 {[%clk 0:00:29.3]} 22. g4 {[%clk 0:01:23.4]} 22... f5
{[%clk 0:00:24.9]} 23. exf5 {[%clk 0:01:19.2]} 23... gxf5 {[%clk 0:00:24.7]} 24.
gxf5 {[%clk 0:01:14.7]} 24... Qh4 {[%clk 0:00:24]} 25. Qg2 {[%clk 0:01:09.1]}
25... Kh8 {[%clk 0:00:23.6]} 26. Qg4 {[%clk 0:01:07.8]} 26... Qh6 {[%clk
0:00:11.6]} 27. Kh1 {[%clk 0:01:03.8]} 27... Rg8 {[%clk 0:00:06.8]} 28. Qg5
{[%clk 0:00:56.7]} 28... Bf8 {[%clk 0:00:02.3]} 29. Qxh6 {[%clk 0:00:55.4]}
29... Bxh6 {[%clk 0:00:03.2]} 30. Ng4 {[%clk 0:00:55.2]} 30... Bg7 {[%clk
0:00:03.7]} 31. f6 {[%clk 0:00:51.2]} 31... Bf8 {[%clk 0:00:04.1]} 32. Kh2
{[%clk 0:00:50.4]} 32... Bxg4 {[%clk 0:00:03.8]} 33. hxg4 {[%clk 0:00:50.1]}
33... Rxg4 {[%clk 0:00:04.7]} 34. Rf3 {[%clk 0:00:48.1]} 34... Nd7 {[%clk
0:00:04.1]} 35. Bf5 {[%clk 0:00:46.4]} 35... Nxf6 {[%clk 0:00:04.1]} 36. Bxg4
{[%clk 0:00:46.4]} 36... Nxg4+ {[%clk 0:00:05]} 37. Kg3 {[%clk 0:00:46.8]} 37...
Nf6 {[%clk 0:00:05.7]} 38. Re1 {[%clk 0:00:45.9]} 38... Ra2 {[%clk 0:00:05.8]}
39. Rf2 {[%clk 0:00:43.3]} 39... Ra1 {[%clk 0:00:04.9]} 40. Rfe2 {[%clk
0:00:41.7]} 40... Bh6 {[%clk 0:00:04.4]} 41. Nd2 {[%clk 0:00:41.2]} 41... Ra3
{[%clk 0:00:04.3]} 42. Kf3 {[%clk 0:00:38.4]} 42... Kg8 {[%clk 0:00:04.4]} 43.
Rg1+ {[%clk 0:00:37.5]} 43... Kf8 {[%clk 0:00:04.4]} 44. Rh1 {[%clk 0:00:37.8]}
44... Bg7 {[%clk 0:00:04.6]} 45. Re3 {[%clk 0:00:36.4]} 45... h6 {[%clk
0:00:04.4]} 46. Ne4 {[%clk 0:00:35.1]} 46... Ne8 {[%clk 0:00:04.9]} 47. f5
{[%clk 0:00:34.4]} 47... Bd4 {[%clk 0:00:04.9]} 48. Rd3 {[%clk 0:00:34.7]} 48...
Be5 {[%clk 0:00:04.8]} 49. Rxh6 {[%clk 0:00:33.1]} 49... Ke7 {[%clk 0:00:05.5]}
50. f6+ {[%clk 0:00:32.6]} 50... Nxf6 {[%clk 0:00:05.3]} 51. Nxf6 {[%clk
0:00:32.1]} 51... Bxf6 {[%clk 0:00:05.6]} 52. Ke4 {[%clk 0:00:31.5]} 52... Be5
{[%clk 0:00:05.4]} 53. Rh7 {[%clk 0:00:31.3]} 53... Ra1 {[%clk 0:00:04.1]} 54.
Rf3 {[%clk 0:00:31.1]} 54... Bf6 {[%clk 0:00:04.5]} 55. Kf5 {[%clk 0:00:29.4]}
55... Re1 {[%clk 0:00:04]} 56. Rhh3 {[%clk 0:00:28.6]} 56... Be5 {[%clk
0:00:03.6]} 57. Re3 {[%clk 0:00:28.2]} 57... Rg1 {[%clk 0:00:03.5]} 58. Rhf3
{[%clk 0:00:25.6]} 58... f6 {[%clk 0:00:03.2]} 59. Rh3 {[%clk 0:00:24.8]} 59...
Rg5+ {[%clk 0:00:03.2]} 60. Ke4 {[%clk 0:00:25]} 60... f5+ {[%clk 0:00:03.8]}
61. Kd3 {[%clk 0:00:24.6]} 61... f4 {[%clk 0:00:04.3]} 62. Ref3 {[%clk
0:00:24.9]} 62... Kf6 {[%clk 0:00:04.3]} 63. Ke4 {[%clk 0:00:25.1]} 63... Rg1
{[%clk 0:00:04]} 64. Rh6+ {[%clk 0:00:24.9]} 64... Kg5 {[%clk 0:00:04]} 65. Rh7
{[%clk 0:00:24]} 65... Re1+ {[%clk 0:00:03.7]} 66. Kd3 {[%clk 0:00:24]} 66...
Kg4 {[%clk 0:00:04.2]} 67. Rf2 {[%clk 0:00:24.1]} 67... Re3+ {[%clk 0:00:02.7]}
68. Kc2 {[%clk 0:00:23.8]} 68... Kg3 {[%clk 0:00:03.6]} 69. Rd2 {[%clk
0:00:23.2]} 69... Rc3+ {[%clk 0:00:03.9]} 70. Kd1 {[%clk 0:00:21.2]} 70... Rxb3
{[%clk 0:00:04.5]} 71. Ke2 {[%clk 0:00:19.4]} 71... Re3+ {[%clk 0:00:04.5]} 72.
Kd1 {[%clk 0:00:19.2]} 72... Rc3 {[%clk 0:00:04.8]} 73. Rh6 {[%clk 0:00:18.8]}
73... f3 {[%clk 0:00:04.4]} 74. Rg6+ {[%clk 0:00:19]} 74... Kf4 {[%clk
0:00:04.9]} 75. Rg8 {[%clk 0:00:18.6]} 75... Rxc4 {[%clk 0:00:05]} 76. Rf8+
{[%clk 0:00:18.4]} 76... Ke3 {[%clk 0:00:05.2]} 77. Rf7 {[%clk 0:00:15]} 77...
Rd4 {[%clk 0:00:05.2]} 78. Rd3+ {[%clk 0:00:15]} 78... Rxd3+ {[%clk 0:00:05.3]}
0-1

[Event "Early-Titled-Tuesday-Blitz-February-13-2024"]
[Site "Chess.com"]
[Date "2024.02.13"]
[Round "4"]
[White "mary-sanna"]
[Black "GMthekingindian"]
[Result "0-1"]
[WhiteElo "2156"]
[BlackElo "2335"]
[TimeControl "180+1"]
[EndTime "8:44:38 PST"]
[Termination "GMthekingindian won by resignation"]

1. d4 {[%clk 0:02:53.5]} 1... d5 {[%clk 0:02:59.6]} 2. c4 {[%clk 0:02:53.3]}
2... e6 {[%clk 0:02:59]} 3. Nf3 {[%clk 0:02:53.3]} 3... c6 {[%clk 0:02:59.1]} 4.
g3 {[%clk 0:02:53.2]} 4... Bd6 {[%clk 0:02:55.2]} 5. Bg2 {[%clk 0:02:51.5]} 5...
Nf6 {[%clk 0:02:55.6]} 6. O-O {[%clk 0:02:51.2]} 6... Nbd7 {[%clk 0:02:55.9]} 7.
Nc3 {[%clk 0:02:49.9]} 7... O-O {[%clk 0:02:55.9]} 8. Qd3 {[%clk 0:02:50.1]}
8... b6 {[%clk 0:02:54.2]} 9. e4 {[%clk 0:02:49.8]} 9... dxe4 {[%clk 0:02:29.2]}
10. Nxe4 {[%clk 0:02:50.7]} 10... Nxe4 {[%clk 0:02:28]} 11. Qxe4 {[%clk
0:02:51.6]} 11... Bb7 {[%clk 0:02:23.8]} 12. Rd1 {[%clk 0:02:36.6]} 12... Qc7
{[%clk 0:02:16.6]} 13. Ng5 {[%clk 0:02:20]} 13... Nf6 {[%clk 0:02:09.8]} 14. Qe2
{[%clk 0:01:44.7]} 14... h6 {[%clk 0:02:05.2]} 15. Ne4 {[%clk 0:01:43.7]} 15...
Nxe4 {[%clk 0:02:04.8]} 16. Qxe4 {[%clk 0:01:42.9]} 16... Rad8 {[%clk
0:02:00.4]} 17. Be3 {[%clk 0:01:39.2]} 17... Be7 {[%clk 0:01:05.8]} 18. c5
{[%clk 0:01:34.5]} 18... bxc5 {[%clk 0:01:00]} 19. dxc5 {[%clk 0:01:35.4]} 19...
Rxd1+ {[%clk 0:00:58.4]} 20. Rxd1 {[%clk 0:01:35.2]} 20... Rd8 {[%clk
0:00:59.3]} 21. Rxd8+ {[%clk 0:01:09.9]} 21... Qxd8 {[%clk 0:01:00.2]} 22. Qa4
{[%clk 0:01:10.5]} 22... a6 {[%clk 0:00:54]} 23. Bxc6 {[%clk 0:01:08.6]} 23...
Bxc6 {[%clk 0:00:50.7]} 24. Qxc6 {[%clk 0:01:09.5]} 24... Qd1+ {[%clk
0:00:48.8]} 25. Kg2 {[%clk 0:01:09.3]} 25... Bf6 {[%clk 0:00:49.2]} 26. b4
{[%clk 0:01:00.6]} 26... Qc2 {[%clk 0:00:37.4]} 27. a4 {[%clk 0:00:42.3]} 27...
Qc4 {[%clk 0:00:32.6]} 28. b5 {[%clk 0:00:40.1]} 28... Qxa4 {[%clk 0:00:32.1]}
29. Qa8+ {[%clk 0:00:34]} 29... Kh7 {[%clk 0:00:31.5]} 30. b6 {[%clk 0:00:32.3]}
30... Qb5 {[%clk 0:00:19]} 31. Qe4+ {[%clk 0:00:31]} 31... g6 {[%clk 0:00:18.7]}
32. b7 {[%clk 0:00:29.4]} 32... Be7 {[%clk 0:00:10.3]} 33. c6 {[%clk 0:00:28.5]}
33... Bd6 {[%clk 0:00:10.6]} 34. Qf3 {[%clk 0:00:23.5]} 34... Kg8 {[%clk
0:00:10.4]} 35. Bxh6 {[%clk 0:00:21.8]} 35... a5 {[%clk 0:00:09.7]} 36. Be3
{[%clk 0:00:19.5]} 36... a4 {[%clk 0:00:09.8]} 37. Bd4 {[%clk 0:00:19.3]} 37...
a3 {[%clk 0:00:10]} 38. Qf6 {[%clk 0:00:18]} 38... Qxc6+ {[%clk 0:00:09.5]} 39.
Kh3 {[%clk 0:00:17.1]} 39... Kf8 {[%clk 0:00:09.5]} 40. Qh8+ {[%clk 0:00:15.3]}
40... Ke7 {[%clk 0:00:10]} 41. b8=Q {[%clk 0:00:14.6]} 41... Bxb8 {[%clk
0:00:10.6]} 42. Qxb8 {[%clk 0:00:14.7]} 42... Qd5 {[%clk 0:00:10.9]} 43. Qb4+
{[%clk 0:00:14.4]} 43... Ke8 {[%clk 0:00:11.4]} 44. Bf6 {[%clk 0:00:13.8]} 44...
Qf5+ {[%clk 0:00:11.4]} 45. Kg2 {[%clk 0:00:13.9]} 45... Qxf6 {[%clk 0:00:11.9]}
46. Qxa3 {[%clk 0:00:14.3]} 46... Qe7 {[%clk 0:00:12.4]} 47. Qf3 {[%clk
0:00:13.7]} 47... Kf8 {[%clk 0:00:12.6]} 48. h4 {[%clk 0:00:14]} 48... Kg7
{[%clk 0:00:12.8]} 49. Qc3+ {[%clk 0:00:14.1]} 49... Kg8 {[%clk 0:00:12.7]} 50.
Qe5 {[%clk 0:00:14.2]} 50... Qd7 {[%clk 0:00:12.6]} 51. Qe4 {[%clk 0:00:13.7]}
51... Qd6 {[%clk 0:00:12.9]} 52. Qa8+ {[%clk 0:00:13.8]} 52... Kg7 {[%clk
0:00:13]} 53. Qf3 {[%clk 0:00:14.4]} 53... Qe5 {[%clk 0:00:13.3]} 54. Qa8 {[%clk
0:00:14]} 54... Qf5 {[%clk 0:00:13.5]} 55. Qf3 {[%clk 0:00:14.3]} 55... Qe5
{[%clk 0:00:13.8]} 56. h5 {[%clk 0:00:13.6]} 56... gxh5 {[%clk 0:00:13.7]} 57.
Qd3 {[%clk 0:00:13]} 57... Qg5 {[%clk 0:00:12.6]} 58. Qd4+ {[%clk 0:00:12.3]}
58... Kh7 {[%clk 0:00:13]} 59. Qe4+ {[%clk 0:00:12.1]} 59... Qg6 {[%clk
0:00:13.4]} 60. Qf3 {[%clk 0:00:11.8]} 60... h4 {[%clk 0:00:13]} 61. g4 {[%clk
0:00:11.2]} 61... f5 {[%clk 0:00:13.3]} 62. Kh3 {[%clk 0:00:10.6]} 62... Qg5
{[%clk 0:00:12.7]} 63. gxf5 {[%clk 0:00:10.3]} 63... exf5 {[%clk 0:00:13.6]} 64.
Qe3 {[%clk 0:00:09.1]} 64... Kh6 {[%clk 0:00:12.9]} 65. Qb6+ {[%clk 0:00:07.9]}
65... Kh5 {[%clk 0:00:13]} 66. Qd4 {[%clk 0:00:06.9]} 66... Qg4+ {[%clk
0:00:12.9]} 67. Qxg4+ {[%clk 0:00:06.4]} 67... fxg4+ {[%clk 0:00:13.8]} 68. Kg2
{[%clk 0:00:06.6]} 68... Kg5 {[%clk 0:00:14.2]} 69. Kh2 {[%clk 0:00:05.8]} 69...
Kf4 {[%clk 0:00:14.4]} 70. Kg2 {[%clk 0:00:06.3]} 70... Ke4 {[%clk 0:00:14.7]}
71. Kf1 {[%clk 0:00:02.9]} 71... Kf3 {[%clk 0:00:14.8]} 72. Kg1 {[%clk
0:00:03.4]} 72... h3 {[%clk 0:00:15.1]} 73. Kf1 {[%clk 0:00:02.1]} 73... h2
{[%clk 0:00:14.9]} 74. Ke1 {[%clk 0:00:02.7]} 74... h1=Q+ {[%clk 0:00:15.3]} 0-1

[Event "Early-Titled-Tuesday-Blitz-February-13-2024"]
[Site "Chess.com"]
[Date "2024.02.13"]
[Round "4"]
[White "ValiantCeleb"]
[Black "levallem"]
[Result "0-1"]
[WhiteElo "2149"]
[BlackElo "2330"]
[TimeControl "180+1"]
[EndTime "8:44:45 PST"]
[Termination "levallem won by checkmate"]

1. d4 {[%clk 0:02:59.2]} 1... d5 {[%clk 0:02:57.7]} 2. Bf4 {[%clk 0:02:59.3]}
2... e6 {[%clk 0:02:57.5]} 3. e3 {[%clk 0:02:59.5]} 3... Bd6 {[%clk 0:02:58.1]}
4. Bg3 {[%clk 0:02:58.5]} 4... Nf6 {[%clk 0:02:58.2]} 5. c4 {[%clk 0:02:58.5]}
5... O-O {[%clk 0:02:58.2]} 6. Nc3 {[%clk 0:02:58.5]} 6... Nbd7 {[%clk
0:02:56.6]} 7. Bxd6 {[%clk 0:02:55.2]} 7... cxd6 {[%clk 0:02:56.4]} 8. cxd5
{[%clk 0:02:55.5]} 8... Nxd5 {[%clk 0:02:55.3]} 9. Nxd5 {[%clk 0:02:54.8]} 9...
exd5 {[%clk 0:02:55.9]} 10. Bd3 {[%clk 0:02:54.2]} 10... Nf6 {[%clk 0:02:55.2]}
11. Ne2 {[%clk 0:02:52.1]} 11... Bg4 {[%clk 0:02:46.1]} 12. O-O {[%clk
0:02:50.1]} 12... Qb6 {[%clk 0:02:42.9]} 13. Qb3 {[%clk 0:02:39.7]} 13... Qxb3
{[%clk 0:02:33.4]} 14. axb3 {[%clk 0:02:39.4]} 14... Rfc8 {[%clk 0:02:31.1]} 15.
Nc3 {[%clk 0:02:28.6]} 15... Kf8 {[%clk 0:02:25.3]} 16. Nb5 {[%clk 0:02:21.9]}
16... Ke7 {[%clk 0:02:21.1]} 17. Rxa7 {[%clk 0:02:19.9]} 17... Rxa7 {[%clk
0:02:19.3]} 18. Nxa7 {[%clk 0:02:20.3]} 18... Ra8 {[%clk 0:02:19.2]} 19. Nb5
{[%clk 0:02:13.9]} 19... Ra2 {[%clk 0:02:18.7]} 20. Rb1 {[%clk 0:02:10.7]} 20...
Bd7 {[%clk 0:02:15.5]} 21. Nc3 {[%clk 0:02:09.9]} 21... Ra8 {[%clk 0:02:12]} 22.
Kf1 {[%clk 0:01:52.4]} 22... g6 {[%clk 0:02:10.6]} 23. Ke2 {[%clk 0:01:47.7]}
23... h5 {[%clk 0:02:10.3]} 24. Kd2 {[%clk 0:01:24.7]} 24... Be6 {[%clk
0:02:09.3]} 25. Rc1 {[%clk 0:01:20.8]} 25... Bd7 {[%clk 0:01:56.1]} 26. f3
{[%clk 0:01:17.6]} 26... h4 {[%clk 0:01:49.8]} 27. Bb5 {[%clk 0:01:09.7]} 27...
Be6 {[%clk 0:01:47.1]} 28. Na4 {[%clk 0:00:58.9]} 28... Kd8 {[%clk 0:01:33.2]}
29. Bf1 {[%clk 0:00:32.9]} 29... Nd7 {[%clk 0:01:27.3]} 30. g3 {[%clk
0:00:23.7]} 30... hxg3 {[%clk 0:01:24.7]} 31. hxg3 {[%clk 0:00:24.6]} 31... Nf6
{[%clk 0:01:01]} 32. Be2 {[%clk 0:00:17.8]} 32... Nh5 {[%clk 0:00:43.6]} 33. g4
{[%clk 0:00:17.6]} 33... Nf6 {[%clk 0:00:43.7]} 34. Rh1 {[%clk 0:00:12.8]} 34...
Ke7 {[%clk 0:00:44]} 35. Rc1 {[%clk 0:00:12.8]} 35... Kd8 {[%clk 0:00:43.3]} 36.
Bd3 {[%clk 0:00:08.7]} 36... Ne8 {[%clk 0:00:40.2]} 37. Bb5 {[%clk 0:00:08.6]}
37... Nc7 {[%clk 0:00:39.1]} 38. Bd3 {[%clk 0:00:09.2]} 38... Ne8 {[%clk
0:00:38.5]} 39. Rg1 {[%clk 0:00:08.5]} 39... Ke7 {[%clk 0:00:38]} 40. f4 {[%clk
0:00:08.8]} 40... Nf6 {[%clk 0:00:33.5]} 41. f5 {[%clk 0:00:08.7]} 41... gxf5
{[%clk 0:00:32.5]} 42. gxf5 {[%clk 0:00:09.6]} 42... Bd7 {[%clk 0:00:32.4]} 43.
Nc3 {[%clk 0:00:09.1]} 43... Rh8 {[%clk 0:00:29.6]} 44. Rg2 {[%clk 0:00:09.5]}
44... Rh5 {[%clk 0:00:29.1]} 45. Rf2 {[%clk 0:00:09.7]} 45... Rh3 {[%clk
0:00:26.8]} 46. b4 {[%clk 0:00:08.9]} 46... Ng4 {[%clk 0:00:26.7]} 47. Nxd5+
{[%clk 0:00:07.5]} 47... Kf8 {[%clk 0:00:25]} 48. Rg2 {[%clk 0:00:07.7]} 48...
Nh6 {[%clk 0:00:21.3]} 49. Nf6 {[%clk 0:00:07.7]} 49... Bc6 {[%clk 0:00:20.8]}
50. e4 {[%clk 0:00:05.9]} 50... Ke7 {[%clk 0:00:19.6]} 51. Ng4 {[%clk 0:00:05]}
51... Nxg4 {[%clk 0:00:18.3]} 52. Rxg4 {[%clk 0:00:05.1]} 52... Rh2+ {[%clk
0:00:18.9]} 53. Kc3 {[%clk 0:00:05.3]} 53... Kf6 {[%clk 0:00:19.2]} 54. Rg8
{[%clk 0:00:04.5]} 54... b5 {[%clk 0:00:18]} 55. Rc8 {[%clk 0:00:04.3]} 55...
Bd7 {[%clk 0:00:17.7]} 56. Rc7 {[%clk 0:00:04.9]} 56... Be8 {[%clk 0:00:16.4]}
57. Rb7 {[%clk 0:00:04.6]} 57... Rh3 {[%clk 0:00:15.6]} 58. Rb6 {[%clk
0:00:03.5]} 58... Ke7 {[%clk 0:00:15.3]} 59. e5 {[%clk 0:00:03.7]} 59... dxe5
{[%clk 0:00:13.3]} 60. dxe5 {[%clk 0:00:04.6]} 60... Bd7 {[%clk 0:00:13.6]} 61.
Rb7 {[%clk 0:00:04.4]} 61... Kd8 {[%clk 0:00:12.8]} 62. f6 {[%clk 0:00:03.8]}
62... Bf5 {[%clk 0:00:12.4]} 63. Rxf7 {[%clk 0:00:02.2]} 63... Rxd3+ {[%clk
0:00:11.9]} 64. Kc2 {[%clk 0:00:02.6]} 64... Rd7+ {[%clk 0:00:11.5]} 65. Kc3
{[%clk 0:00:02.3]} 65... Rxf7 {[%clk 0:00:12.4]} 66. b3 {[%clk 0:00:01.5]} 66...
Be6 {[%clk 0:00:12.8]} 67. Kb2 {[%clk 0:00:02.3]} 67... Kc7 {[%clk 0:00:13.3]}
68. Ka3 {[%clk 0:00:02.9]} 68... Kc6 {[%clk 0:00:14.2]} 69. Ka2 {[%clk
0:00:03.4]} 69... Kd5 {[%clk 0:00:15]} 70. Ka3 {[%clk 0:00:04.3]} 70... Kxe5
{[%clk 0:00:15.8]} 71. Kb2 {[%clk 0:00:04.8]} 71... Rxf6 {[%clk 0:00:16.7]} 72.
Ka3 {[%clk 0:00:05.7]} 72... Rf3 {[%clk 0:00:17.2]} 73. Kb2 {[%clk 0:00:05.6]}
73... Kd4 {[%clk 0:00:18.1]} 74. Ka3 {[%clk 0:00:05.8]} 74... Rxb3+ {[%clk
0:00:18]} 75. Ka2 {[%clk 0:00:06.4]} 75... Rxb4+ {[%clk 0:00:17.3]} 76. Ka3
{[%clk 0:00:07.2]} 76... Rc4 {[%clk 0:00:16.2]} 77. Kb2 {[%clk 0:00:07.2]} 77...
Kc5 {[%clk 0:00:16.3]} 78. Ka3 {[%clk 0:00:07.9]} 78... Bf5 {[%clk 0:00:16.6]}
79. Kb2 {[%clk 0:00:08.1]} 79... b4 {[%clk 0:00:17]} 80. Kb3 {[%clk 0:00:08.2]}
80... Rc3+ {[%clk 0:00:16.8]} 81. Kb2 {[%clk 0:00:07.6]} 81... Kc4 {[%clk
0:00:16.4]} 82. Ka2 {[%clk 0:00:08.1]} 82... Rc2+ {[%clk 0:00:15.9]} 83. Ka1
{[%clk 0:00:08.1]} 83... b3 {[%clk 0:00:14.8]} 84. Kb1 {[%clk 0:00:08.1]} 84...
Bd3 {[%clk 0:00:14.2]} 85. Ka1 {[%clk 0:00:08.1]} 85... Ra2# {[%clk 0:00:14.5]}
0-1

[Event "Early-Titled-Tuesday-Blitz-February-13-2024"]
[Site "Chess.com"]
[Date "2024.02.13"]
[Round "4"]
[White "SlavenPastar"]
[Black "Durarbayli"]
[Result "1/2-1/2"]
[WhiteElo "2618"]
[BlackElo "2922"]
[TimeControl "180+1"]
[EndTime "8:44:48 PST"]
[Termination "Game drawn by repetition"]

1. b3 {[%clk 0:03:00.9]} 1... d5 {[%clk 0:02:57.6]} 2. Bb2 {[%clk 0:03:01.3]}
2... c5 {[%clk 0:02:58.1]} 3. e3 {[%clk 0:02:59.7]} 3... Nf6 {[%clk 0:02:58.2]}
4. Nf3 {[%clk 0:02:59.4]} 4... a6 {[%clk 0:02:58.7]} 5. Be2 {[%clk 0:02:57.6]}
5... Nc6 {[%clk 0:02:59.2]} 6. d4 {[%clk 0:02:57.2]} 6... cxd4 {[%clk 0:02:46]}
7. Nxd4 {[%clk 0:02:58.1]} 7... e6 {[%clk 0:02:45.5]} 8. O-O {[%clk 0:02:58.2]}
8... Bd6 {[%clk 0:02:45.7]} 9. c4 {[%clk 0:02:56.6]} 9... Nxd4 {[%clk
0:02:42.2]} 10. Qxd4 {[%clk 0:02:51]} 10... e5 {[%clk 0:02:42.3]} 11. Qh4 {[%clk
0:02:45.8]} 11... dxc4 {[%clk 0:02:35.3]} 12. Bxc4 {[%clk 0:02:42]} 12... b5
{[%clk 0:02:26.3]} 13. Rd1 {[%clk 0:02:19.5]} 13... Qe7 {[%clk 0:01:59.9]} 14.
Bf1 {[%clk 0:02:11.9]} 14... Bb7 {[%clk 0:01:50.8]} 15. a4 {[%clk 0:02:08.9]}
15... O-O {[%clk 0:01:17.1]} 16. axb5 {[%clk 0:01:48]} 16... axb5 {[%clk
0:01:18]} 17. Nc3 {[%clk 0:01:47.3]} 17... Rxa1 {[%clk 0:01:11.2]} 18. Bxa1
{[%clk 0:01:36.3]} 18... b4 {[%clk 0:01:11.4]} 19. Na4 {[%clk 0:01:34.3]} 19...
Rd8 {[%clk 0:00:53.7]} 20. Nb6 {[%clk 0:01:30.8]} 20... Bc7 {[%clk 0:00:27.6]}
21. Rxd8+ {[%clk 0:01:30]} 21... Qxd8 {[%clk 0:00:28]} 22. Nc4 {[%clk 0:01:27]}
22... Qd1 {[%clk 0:00:27.3]} 23. Bxe5 {[%clk 0:01:04.1]} 23... Bxe5 {[%clk
0:00:27.3]} 24. Nxe5 {[%clk 0:01:04]} 24... Ba6 {[%clk 0:00:27.9]} 25. Nc4
{[%clk 0:01:00.2]} 25... Qxb3 {[%clk 0:00:28]} 26. Nd2 {[%clk 0:00:33.7]} 26...
Qc3 {[%clk 0:00:26.7]} 27. Qd4 {[%clk 0:00:14.7]} 27... Qxd4 {[%clk 0:00:20.2]}
28. exd4 {[%clk 0:00:15.6]} 28... Bb7 {[%clk 0:00:21]} 29. Bc4 {[%clk
0:00:13.4]} 29... Kf8 {[%clk 0:00:21.4]} 30. Kf1 {[%clk 0:00:12.9]} 30... Ke7
{[%clk 0:00:16.4]} 31. f3 {[%clk 0:00:12.7]} 31... Ne8 {[%clk 0:00:16.2]} 32.
Ke2 {[%clk 0:00:12.6]} 32... Nd6 {[%clk 0:00:16.6]} 33. Kd3 {[%clk 0:00:12.8]}
33... f5 {[%clk 0:00:16]} 34. Nb3 {[%clk 0:00:11.3]} 34... g5 {[%clk 0:00:15.3]}
35. Nc5 {[%clk 0:00:11.5]} 35... Bc6 {[%clk 0:00:15.4]} 36. Na6 {[%clk
0:00:07.6]} 36... b3 {[%clk 0:00:12.3]} 37. Nc5 {[%clk 0:00:04.3]} 37... b2
{[%clk 0:00:10.3]} 38. Ba2 {[%clk 0:00:04.8]} 38... Bd5 {[%clk 0:00:09.6]} 39.
Bb1 {[%clk 0:00:04]} 39... g4 {[%clk 0:00:10]} 40. Kc2 {[%clk 0:00:03.5]} 40...
gxf3 {[%clk 0:00:08.7]} 41. gxf3 {[%clk 0:00:04.4]} 41... Nc4 {[%clk 0:00:09.2]}
42. Kc3 {[%clk 0:00:04]} 42... Kf6 {[%clk 0:00:08.3]} 43. Nd3 {[%clk 0:00:03.6]}
43... Na3 {[%clk 0:00:07.5]} 44. Kxb2 {[%clk 0:00:03.6]} 44... Nxb1 {[%clk
0:00:07.5]} 45. Kxb1 {[%clk 0:00:04.5]} 45... Bxf3 {[%clk 0:00:08.1]} 46. Kc1
{[%clk 0:00:05]} 46... Be4 {[%clk 0:00:07.9]} 47. Kd2 {[%clk 0:00:05]} 47... Kg5
{[%clk 0:00:07.1]} 48. Ke3 {[%clk 0:00:05.1]} 48... Bd5 {[%clk 0:00:05]} 49. Nf4
{[%clk 0:00:05.1]} 49... Bc6 {[%clk 0:00:05.1]} 50. d5 {[%clk 0:00:05.4]} 50...
Bd7 {[%clk 0:00:05.7]} 51. Ne6+ {[%clk 0:00:04.3]} 51... Kf6 {[%clk 0:00:06.1]}
52. Nd4 {[%clk 0:00:02.5]} 52... Ke5 {[%clk 0:00:06]} 53. Ne2 {[%clk 0:00:01.8]}
53... Kxd5 {[%clk 0:00:06]} 54. Nf4+ {[%clk 0:00:02.7]} 54... Ke5 {[%clk
0:00:06.1]} 55. Kf3 {[%clk 0:00:03.2]} 55... Bc6+ {[%clk 0:00:06.2]} 56. Kg3
{[%clk 0:00:04.1]} 56... Bb5 {[%clk 0:00:06.2]} 57. h4 {[%clk 0:00:04.6]} 57...
h6 {[%clk 0:00:06.1]} 58. Nh3 {[%clk 0:00:04.8]} 58... Bf1 {[%clk 0:00:02.7]}
59. Nf4 {[%clk 0:00:05.2]} 59... Ke4 {[%clk 0:00:03.2]} 60. Ng6 {[%clk
0:00:04.9]} 60... Bb5 {[%clk 0:00:03.2]} 61. Nf4 {[%clk 0:00:05.3]} 61... Be8
{[%clk 0:00:03.7]} 62. Ng2 {[%clk 0:00:05.5]} 62... Bh5 {[%clk 0:00:04]} 63. Nf4
{[%clk 0:00:05.9]} 63... Bg4 {[%clk 0:00:04.6]} 64. Ng6 {[%clk 0:00:06.1]} 64...
Kd5 {[%clk 0:00:04.5]} 65. Nf4+ {[%clk 0:00:06.8]} 65... Ke5 {[%clk 0:00:05.1]}
66. Ng2 {[%clk 0:00:07.3]} 66... Bh5 {[%clk 0:00:04.8]} 67. Nf4 {[%clk
0:00:07.7]} 67... Be8 {[%clk 0:00:05.7]} 68. Ng2 {[%clk 0:00:08]} 68... Bc6
{[%clk 0:00:05.9]} 69. Nf4 {[%clk 0:00:08.5]} 69... Kf6 {[%clk 0:00:06.2]} 70.
Nh3 {[%clk 0:00:08.8]} 70... Bb7 {[%clk 0:00:04]} 71. Nf4 {[%clk 0:00:09.4]}
71... Ke5 {[%clk 0:00:04.5]} 72. Nh3 {[%clk 0:00:09.8]} 72... Ke4 {[%clk
0:00:04.3]} 73. Nf4 {[%clk 0:00:10.4]} 73... Ke3 {[%clk 0:00:04.8]} 74. Nh3
{[%clk 0:00:10.4]} 74... Bc6 {[%clk 0:00:04.4]} 75. Nf4 {[%clk 0:00:10.8]} 75...
Be8 {[%clk 0:00:04.7]} 76. Ne6 {[%clk 0:00:10.3]} 76... Bh5 {[%clk 0:00:04.2]}
77. Nf4 {[%clk 0:00:10.6]} 77... Bg4 {[%clk 0:00:05]} 78. Ne6 {[%clk 0:00:10.1]}
78... h5 {[%clk 0:00:05.5]} 79. Nf4 {[%clk 0:00:10.3]} 79... Ke4 {[%clk
0:00:06.1]} 80. Ng6 {[%clk 0:00:10.8]} 80... Kd4 {[%clk 0:00:05.7]} 81. Nf4
{[%clk 0:00:11.3]} 81... Ke5 {[%clk 0:00:06.4]} 82. Ng6+ {[%clk 0:00:11.5]}
82... Kf6 {[%clk 0:00:06.8]} 83. Nf4 {[%clk 0:00:12.2]} 83... Ke5 {[%clk
0:00:07.7]} 84. Ng2 {[%clk 0:00:12.8]} 84... Bd1 {[%clk 0:00:06.6]} 85. Nf4
{[%clk 0:00:12.6]} 85... Bg4 {[%clk 0:00:06.6]} 1/2-1/2